Cogmind - Beta 13 @@@ ROGUE MODE // 2024.04.03 @ 09:17:49 Player: Gingerlink Result: Self-destructed Performance ------------- Evolutions (2) 1000 Regions Visited (4) 800 Robots Destroyed (69) 345 Value Destroyed (1292) 1292 Prototype IDs (2) 40 Alien Tech Used (0) 0 Bonus (47) 47 TOTAL SCORE: 3524 Bonus ------- High Alert Combat Kills 47 Cogmind --------- Core Integrity 440/550 Matter 162/300 Energy 240/240 System Corruption 0% Temperature Warm (100) Movement Treading (320) Ox2 Location -8/Materials Parts ------- > --- POWER (1) -------- Nuclear Core > --- PROPULSION (4) --- Light Treads > --- UTILITY (3) ------ Large Storage Unit Experimental Sensor Array Hardened Medium Armor Plating > --- WEAPON (3) ------- Light Assault Rifle Light Assault Rifle Grenade Launcher > --- INVENTORY (15) --- Faulty Heavy Ion Engine VSS Leg Improved Heat Sink Large Storage Unit Heavy Armor Plating Hardened Light Armor Plating Insulated Plating Light Assault Rifle Assault Cannon Rocket Launcher Axe Peak State ------------ > --- POWER ------------ Nuclear Core > --- PROPULSION ------- Light Treads Light Treads Light Treads Improved Treads > --- UTILITY ---------- Large Storage Unit Experimental Sensor Array Hardened Medium Armor Plating > --- WEAPON ----------- Light Assault Rifle Light Assault Rifle Rocket Launcher > --- INVENTORY -------- Heavy Ion Engine VSS Leg Improved Heat Sink Large Storage Unit Heavy Armor Plating Hardened Light Armor Plating Insulated Plating Light Assault Rifle Assault Cannon Grenade Launcher Rocket Launcher Axe [Rating: 28] Favorites ----------- Power Light Ion Engine Engine Light Ion Engine Power Core Nuclear Core Propulsion Light Treads Treads Light Treads Leg Aluminum Leg Utility Experimental Sensor Array Device Experimental Sensor Array Storage Large Storage Unit Protection Light Armor Plating Weapon Light Assault Rifle Ballistic Gun Light Assault Rifle Launcher Rocket Launcher Build | -11 -10 -10 -9 -8 ------- Run | Yrd Mat Min Mat Mat Slots Evolved 4 | . . . 2 2 Power . | . . . . . Propulsion 2 | . . . 1 1 Utility 1 | . . . . 1 Weapon 1 | . . . 1 . Parts Attached 33 | 6 8 1 9 9 Power 4 | 1 1 . 1 1 Engine 3 | 1 1 . 1 . Core 1 | . . . . 1 Reactor . | . . . . . Propulsion 10 | 2 1 . 3 4 Treads 7 | . . . 3 4 Leg 3 | 2 1 . . . Wheel . | . . . . . Hover . | . . . . . Flight . | . . . . . Utility 11 | 1 4 1 2 3 Device 2 | . . 1 1 . Storage 5 | 1 3 . 1 . Processor . | . . . . . Hackware . | . . . . . Protection 4 | . 1 . . 3 Artifact . | . . . . . Weapon 8 | 2 2 . 3 1 Energy Gun . | . . . . . Energy Cannon . | . . . . . Ballistic Gun 4 | 2 . . 2 . Ballistic Cannon . | . . . . . Launcher 4 | . 2 . 1 1 Special Weapon . | . . . . . Impact Weapon . | . . . . . Slashing Weapon . | . . . . . Piercing Weapon . | . . . . . Special Melee Weapon . | . . . . . Unidentified Prototypes 1 | . . 1 . . Parts Lost 10 | . 3 . 2 5 Power 3 | . 1 . 1 1 Propulsion 4 | . 1 . . 3 Utility 1 | . 1 . . . Weapon 2 | . . . 1 1 Highest Loss Streak 5 | . 2 . 1 5 To Critical Strikes . | . . . . . Average Slot Usage (%) 98 | . 98 100 96 99 Engine 11 | . 13 14 8 8 Treads 16 | . . . 25 35 Leg 14 | . 27 28 5 . Device 7 | . . 9 11 9 Storage 13 | . 18 18 11 9 Protection 4 | . 8 . . 8 Ballistic Gun 17 | . 14 14 21 18 Launcher 12 | . 13 14 11 8 Naked Turns . | . . . . . Heaviest Build 93 | 11 93 93 93 38 Greatest Support 86 | 20 20 20 60 86 Greatest Overweight (x) 9 | . 9 4 4 . Average Overweight (x) . | . . 4 . . Largest Inventory Capacity 25 | 8 25 25 25 15 Average Capacity 16 | 6 13 25 15 15 Most Carried 15 | 2 9 9 15 15 Average Carried 10 | 1 7 8 12 14 Final Capacity 25 | 8 25 25 15 15 Final Carried 15 | 2 8 9 15 12 Class Distribution -------------------- 48% | Mutant 27% | Skirmisher 12% | Tank 8% | Scavenger-Tank Dominant Class ---------------- Mutant | -10/Materials Mutant | -10/Mines Skirmisher | -9/Materials Tank | -8/Materials Resources | -11 -10 -10 -9 -8 ----------- Run | Yrd Mat Min Mat Mat Matter Collected 1463 | 203 198 23 791 248 Remotely . | . . . . . Salvage Created 1402 | . 228 . 861 313 Parts 116 | . 28 . 64 24 Haulers Intercepted 3 | . . . 3 . Recyclers Shooed 3 | . 1 . 1 1 Parts Field Recycled . | . . . . . Retrieved Matter . | . . . . . Parts Self-Destructed . | . . . . . Prevented . | . . . . . Kills | -11 -10 -10 -9 -8 ------- Run | Yrd Mat Min Mat Mat Combat Hostiles Destroyed 42 | . 11 . 19 12 Guns 10 | . 2 . 6 2 AOE 32 | . 9 . 13 10 Classes Destroyed 12 | . 5 . 6 1 Worker 4 | . 2 . 2 . Builder 6 | . 1 . 3 2 Tunneler 1 | . . . 1 . Hauler 3 | . . . 3 . Recycler 5 | . . . 3 2 Mechanic 1 | . . . . 1 Operator 1 | . . . 1 . Watcher 6 | . 1 . 5 . Swarmer 21 | . 6 . 7 8 Grunt 12 | . 5 . 6 1 Brawler 1 | . . . 1 . Sentry 8 | . . . 5 3 Best Kill Streak 9 | . 5 . 9 5 Combat Bots Only 4 | . 3 . 4 4 Max Kills in Single Turn 5 | . 3 . 4 5 Gunslinging . | . . . . . Exploded 4 | . 2 . 2 4 Melee . | . . . . . Uniques/NPCs Destroyed . | . . . . . Combat | -11 -10 -10 -9 -8 -------- Run | Yrd Mat Min Mat Mat Hostile Shots Fired 130 | . 30 . 50 50 Missed 33 | . 6 . 11 16 Damage Taken 1896 | . 572 . 606 718 Core 394 | . 170 . 114 110 Absorbed by Shields . | . . . . . Core Remaining (%) 67 | 100 . 32 71 . Volleys Fired 101 | . 29 . 46 26 Largest 3 | . 2 . 3 3 Hottest 86 | . 53 . 86 73 Shots Fired 237 | . 41 . 123 73 Gun 168 | . 29 . 87 52 Cannon . | . . . . . Launcher 69 | . 12 . 36 21 Special . | . . . . . Kinetic 168 | . 29 . 87 52 Thermal . | . . . . . Explosive 69 | . 12 . 36 21 Electromagnetic . | . . . . . Robot Hit Streak 10 | . 10 . 8 7 Robot Miss Streak 5 | . 4 . 5 3 Penetration Max . | . . . . . Secondary Targets . | . . . . . Shots Hit Robots 105 | . 24 . 61 20 Core Hits 115 | . 22 . 62 31 Critical Kills . | . . . . . Critical Parts Destroyed 1 | . . . . 1 Critical Strikes 1 | . . . . 1 Destroy 1 | . . . . 1 Melee Attacks . | . . . . . Impact . | . . . . . Slashing . | . . . . . Piercing . | . . . . . Sneak Attacks . | . . . . . Combat Hostiles . | . . . . . Follow-up Attacks . | . . . . . Damage Inflicted 4583 | . 954 . 2429 1200 Guns 939 | . 169 . 501 269 Cannons . | . . . . . Explosions 3587 | . 776 . 1895 916 Melee . | . . . . . Ramming 57 | . 9 . 33 15 Kinetic 939 | . 169 . 501 269 Thermal . | . . . . . Explosive 3587 | . 776 . 1895 916 Electromagnetic . | . . . . . Impact . | . . . . . Slashing . | . . . . . Piercing . | . . . . . Highest Corruption 1 | . 1 1 . . Average Corruption 1 | . 1 1 . . Corruption Purged . | . . . . . Corruption Blocked . | . . . . . Effects 15 | . 8 7 . . Message Errors 5 | . 3 2 . . Matter Fused 6 | . 3 3 . . Heat Flow Errors 1 | . . 1 . . Energy Discharges 1 | . 1 . . . Data Loss (minor) 1 | . . 1 . . Misfires 1 | . 1 . . . Overload Shots . | . . . . . Overflow Damage 89 | . 15 . 61 13 Projectiles . | . . . . . Explosions 89 | . 15 . 61 13 Melee . | . . . . . Knockbacks . | . . . . . Impact . | . . . . . Kinetic . | . . . . . Secondary . | . . . . . Self-Inflicted Damage 391 | . 231 . 131 29 Shots 13 | . 7 . 5 1 Rammed 7 | . . . 4 3 Targets Rammed 11 | . 2 . 5 4 Kicked 3 | . 2 . 1 . Crushed 1 | . . . . 1 Highest Temperature 177 | . 44 144 73 177 Average Temperature 36 | . 15 76 12 67 Received Heat Transfer 501 | . 183 . 147 171 Siege Activations . | . . . . . Robots Corrupted . | . . . . . Combat Hostiles . | . . . . . Parts Fried . | . . . . . Impact Corruptions . | . . . . . Robots Melted . | . . . . . Combat Hostiles . | . . . . . Parts Melted . | . . . . . Heat Transferred . | . . . . . Parts Sabotaged . | . . . . . Parts Stolen . | . . . . . Parts Stripped . | . . . . . Power Chain Reactions 1 | . . . . 1 Alert | -11 -10 -10 -9 -8 ------- Run | Yrd Mat Min Mat Mat Peak Influence 611 | . 193 48 611 384 Initial 210 | . . 48 . 210 Average 198 | . 58 22 409 242 Maximum Alert Level 2 | . . . 2 1 Low Security (%) 55 | 100 100 100 9 24 Level 1 25 | . . . 27 75 Level 2 19 | . . . 62 . Level 3 . | . . . . . Level 4 . | . . . . . Level 5 . | . . . . . High Security . | . . . . . Max Security . | . . . . . Squads Dispatched 5 | . 2 . 1 2 Investigation . | . . . . . Extermination . | . . . . . Reinforcement 5 | . 2 . 1 2 Assault . | . . . . . Garrison . | . . . . . Intercept . | . . . . . Searches Triggered . | . . . . . Construction Impeded 2 | . . . 1 1 Haulers Reinforced . | . . . . . Active Scanning Responses . | . . . . . Cargo Convoy Interrupts . | . . . . . Stealth | -11 -10 -10 -9 -8 --------- Run | Yrd Mat Min Mat Mat Distress Signals 4 | . 2 . 2 . Communications Jammed . | . . . . . Distress Signals . | . . . . . Times Spotted 52 | . 14 . 23 15 Peak Tracking Total 4 | . 3 . 4 4 Tactical Retreats . | . . . . . Traps | -11 -10 -10 -9 -8 ------- Run | Yrd Mat Min Mat Mat Traps Triggered 2 | . 1 . 1 . Indirectly . | . . . . . Trap Hack Attempts . | . . . . . Triggered . | . . . . . Disarmed . | . . . . . Reprogrammed . | . . . . . Reused . | . . . . . Traps Extracted . | . . . . . Installed . | . . . . . Triggered . | . . . . . Machines | -11 -10 -10 -9 -8 ---------- Run | Yrd Mat Min Mat Mat Machines Disabled 5 | . 3 . . 2 Max in Single Turn 2 | . 1 . . 2 Machines Repaired . | . . . . . Machines Dismantled . | . . . . . Machines Sabotaged . | . . . . . Overloaded Fab Kills . | . . . . . Hacking | -11 -10 -10 -9 -8 --------- Run | Yrd Mat Min Mat Mat Machines Accessed 1 | . . . 1 . Terminals . | . . . . . Fabricators . | . . . . . Repair Stations . | . . . . . Recycling Units . | . . . . . Scanalyzers 1 | . . . 1 . Garrison Access . | . . . . . Total Hacks 2 | . . . 2 . Successful 2 | . . . 2 . Failed . | . . . . . Catastrophic . | . . . . . Database Lockouts . | . . . . . Manual . | . . . . . Terminals . | . . . . . Fabricators . | . . . . . Repair Stations . | . . . . . Recycling Units . | . . . . . Scanalyzers 2 | . . . 2 . Garrison Access . | . . . . . Terminal Hacks . | . . . . . Fabricator Hacks . | . . . . . Repair Station Hacks . | . . . . . Recycling Unit Hacks . | . . . . . Scanalyzer 2 | . . . 2 . Insert Component 1 | . . . 1 . Analyze 1 | . . . 1 . Garrison Access Hacks . | . . . . . Unauthorized Hacks . | . . . . . Terminals . | . . . . . Fabricators . | . . . . . Repair Stations . | . . . . . Recycling Units . | . . . . . Scanalyzers . | . . . . . Garrison Access . | . . . . . Data Cores Recovered . | . . . . . Used . | . . . . . Hacking Detections 1 | . . . 1 . Full Trace Events . | . . . . . Feedback Events . | . . . . . Feedback Blocked . | . . . . . Robot Schematics Acquired . | . . . . . Robots Built . | . . . . . Authchips . | . . . . . Time . | . . . . . Total Robot Build Rating . | . . . . . Part Schematics Acquired 1 | . . . 1 . Parts Built . | . . . . . Authchips . | . . . . . Time . | . . . . . Total Part Build Rating . | . . . . . Parts Repaired . | . . . . . Time . | . . . . . Parts Recycled . | . . . . . Recycled Matter . | . . . . . Retrieved Matter . | . . . . . Retrieved Components . | . . . . . Parts Scanalyzed 1 | . . . 1 . Part Schematics Acquired 1 | . . . 1 . Parts Damaged . | . . . . . Bothacking | -11 -10 -10 -9 -8 ------------ Run | Yrd Mat Min Mat Mat Used RIF Installer . | . . . . . Robots Hacked . | . . . . . Non-combat . | . . . . . Combat . | . . . . . Robot Hacks Applied . | . . . . . Relay Couplers Released . | . . . . . Fabnet Peak Effective % . | . . . . . Robots Rewired . | . . . . . Allies Hacked . | . . . . . Hacks Repelled . | . . . . . Allies | -11 -10 -10 -9 -8 -------- Run | Yrd Mat Min Mat Mat Total Allies . | . . . . . Largest Group . | . . . . . Highest-Rated Group . | . . . . . Highest-Rated Ally . | . . . . . Total Orders . | . . . . . Ally Attacks . | . . . . . Total Damage . | . . . . . Kills . | . . . . . Allies Corrupted . | . . . . . Allies Melted . | . . . . . Intel | -11 -10 -10 -9 -8 ------- Run | Yrd Mat Min Mat Mat Robot Analysis Total . | . . . . . Derelict Logs Recovered 1 | . . 1 . . Drone Launches . | . . . . . Drone Recoveries . | . . . . . Exploration | -11 -10 -10 -9 -8 ------------- Run | Yrd Mat Min Mat Mat Turns Passed 4379 | 78 1153 834 1336 978 Spaces Moved 1909 | 65 414 209 690 531 Core 14 | 14 . . . . Treads 1170 | . . . 639 531 Legs 725 | 51 414 209 51 . Wheels . | . . . . . Hover . | . . . . . Flight . | . . . . . Fastest Speed 50 | 50 120 400 160 160 Average Speed 191 | 104 179 400 167 160 Slowest Speed 750 | 120 750 400 400 160 Overloaded Moves . | . . . . . Propulsion Burnouts . | . . . . . Robots Hopped . | . . . . . Cave-ins Triggered . | . . . . . Exploration Rate (%) 35 | 4 57 34 43 38 Regions Visited 4 Branch Regions 1 Pre-discovered Areas . | . . . . . Known Exits Taken 1 | . . 1 . . Unknown Exits Taken 3 | 1 1 . 1 . Scrap Searched 1 | . . 1 . . Spaces Dug 8 | . . . 8 . Terrain Destroyed 554 | . 89 . 312 153 Melee . | . . . . . Projectile . | . . . . . AOE 554 | . 89 . 312 153 Terrain Rammed . | . . . . . Walls Destroyed . | . . . . . Machines Disabled . | . . . . . Actions | -11 -10 -10 -9 -8 --------- Run | Yrd Mat Min Mat Mat Total 2469 | 72 787 210 785 615 Wait 356 | . 326 . 7 23 Move 1905 | 64 413 208 689 531 Hop . | . . . . . Pick Up 32 | 2 5 . 15 10 Fast Attach 18 | 6 5 1 4 2 Attach 13 | . 1 . 5 7 Detach 9 | . 2 1 5 1 Swap 2 | . 2 . . . Drop 22 | . 2 . 9 11 Fire 101 | . 29 . 46 26 Melee . | . . . . . Ram . | . . . . . Kick 3 | . 2 . 1 . Crush 8 | . . . 4 4 Escape Stasis . | . . . . . Rewire . | . . . . . Trap . | . . . . . Miscellaneous . | . . . . . Route ------- -11/Scrapyard -10/Materials (discovered 2 exits: [*Min x2]) -10/Mines (discovered 2 exits: *Mat x2) -9/Materials -8/Materials History --------- Turn | Location | Event 6 | -11/Scrapyard | Discovered new exit (range 16) 79 | -11/Scrapyard | Entered Materials 145 | -10/Materials | Discovered new exit (range 7) 305 | -10/Materials | Build established: Mutant 975 | -10/Materials | Discovered new exit (range 15) 1162 | -10/Materials | Core integrity fell below 50% 1232 | -10/Materials | Entered Mines 1320 | -10/Mines | Discovered new exit (range 8) 1420 | -10/Mines | Identified exit to Materials 1464 | -10/Mines | Found a damaged Exp. Sensor Array with a note attached 1473 | -10/Mines | Found Prototype Device 1473 | -10/Mines | Identified Exp. Sensor Array 2066 | -10/Mines | Entered Materials 2066 | -9/Materials | Evolved 2 slots: Propulsion x1, Weapon x1 2981 | -9/Materials | Build established: Skirmisher 3127 | -9/Materials | Discovered new exit (range 8) 3402 | -9/Materials | Entered another Materials area 3402 | -8/Materials | Evolved 2 slots: Propulsion x1, Utility x1 3748 | -8/Materials | Build established: Scavenger-Tank 4099 | -8/Materials | Build established: Tank 4380 | -8/Materials | Self-destructed Last Messages --------------- K-01 Serf collects debris. U-05 Engineer lays Concrete. U-05 Engineer builds a Wall. K-01 Serf collects debris. U-05 Engineer destroyed. ALERT: Hostile activity reported, dispatching reinforcements to area. Slug penetrates U-05 Engineer. U-05 Engineer destroyed. The unstable cave ceiling collapses. K-01 Serf collects debris. Penetrated by Slug. Lgt. Ion Engine destroyed. Imp. Treads blasted off. K-01 Serf collects debris. Rocket Launcher destroyed. Destroyed Rocket Launcher. Lgt. Treads destroyed. The unstable cave ceiling collapses. Imp. Treads destroyed. Lgt. Treads destroyed. Map ----- +----------------------------------------------------+ | ?????????????????????????????????? | | ?????????????????????????????????? | | ?????????????????????????????????? | | ?????????????????????????????????? | | ?????????????????????????????????? | | ?????????????????????????????????? | | ?????????????????????????????????? | | ?????????????????????????????????? | | ?????????????????????????????????? | | ?????????????????????????????????? | | ??????????????????????????? ?????? | | ?????????????????????????# ???? | | ????????????????????????? ##?? | | ????????????????????????? = ##? | | ?????????????????????????!%! ?? | | ????????????????????????? ?? | | ?????????????????????????# H #?? | | ?????????????????????????# #?? | | ?????????????????????????# #?? | | ?????????????????????????# #?? | | ????????????????????????##%! ??? | | ????????????????????????# =g ##?? | | ????????????????????????# #?? | | ????????????????????????# #?? | | ??????????????????####### #?? | | ??????????????????# @ #???? | | ??????????????????# %= #???? | | ??????????????????# % #???? | | ??????????????????# ####! #???? | | ??????????????????# #??#% #???? | | ??????????????????# #??#| #???? | | ??????????????????# #??# #???? | | ??????????????????# #??# #???? | | ??????????????????# #??# #???? | | ?????????????????## ##?# #???? | | ?????????????????# #?# #???? | | ?????????????????# #?# #???? | | ?????????????????# T? #?# #???? | | ???###???????????# #?# #???? | | #### ####????????# ? #?# #???? | | ! ] #????????# ###?# ? #???? | | ########?# #???# #???? | | * # #### ######+####?? | | [# ## #?? | | | + ## #?? | | "" *# * ## #?? | | "Y # ###### ## #?? | | "" !## ###???# ## #?? | | [ *= ## # ????# ## #?? | | ########## #?????# ## #?? | +----------------------------------------------------+ Best States ------------- Heat Dissipation 31 Energy Generation 14 Energy Capacity 250 Matter Stores 300 Matter Capacity 450 Sight Range 16 Robot Scan Range 20 Terrain Scan Density 10 Armor Coverage 225 Evasion (%) 55 Recoil Reduction 4 Item Schematics ----------------- Adv. Beam Cannon | -9/Materials | Scanalyzed Robot Schematics ------------------ None Fabricated ------------ Nothing Alien Tech Used ----------------- None Achievements -------------- Safety First Challenges ------------ None Game ------ Seed SwordEfficiencyLeg Manual? 0 Play Time 00:38:33 Cumulative 6.2 hours Start 2024.04.03 @ 08:41:09 End 2024.04.03 @ 09:17:49 Sessions 1 Manual Loads 0 Difficulty Rogue Special Mode None Game No. 12 Rogue 12 Adventurer 0 Explorer 0 Win Type - Total 0 Types 0/0/0/0/0/0/0/0/0 Lore% 1 Gallery% 11 Achievement% 8 Wizard Run 0 Options --------- Layout 0 ASCII 0 Keyboard 1 Movement Vi Keybinds 0 Fullscreen 2 Font 24/Smallcaps Map View 76x50 Zoom Use 0% Tactical HUD 0 Map Filters NONE Filters NONE Steam 1 RUN: 59cbbba1-095a-4cd2-9712-1f971d093ccd